Workbook

Sheet Table of Contents
A1: Tuner Freak's RC Motor Dyno Workbook
B3: Use the space below to create links to each of your motor tests. I've included an example to give you an idea of what good data should look like.
B5: Preloaded Test Results:
C6: #1

Sheet Dyno Test #1
A1: Dyno Test #1 | E1: Candy Toy Motor w/1S Lipo | K1: Table of Contents
C3: Velocity | D3: Acceleration | F3: Velocity | G3: Accel | H3: Torque | J3: Power | S3: Polynomials
B4: Time(ms) | C4: RPM | D4: RPM/ms | E4: RPM/s | F4: rad/s | G4: rad/s2 | H4: Nm | I4: gcm | J4: W | S4: 3.13e-12
B5: 100 | C5: 163 | D5: =(4*$S$4*(B5^3))+(3*$S$5*(B5^2))+(2*$S$6*(B5))+$S$7 -> 2.11958444 | E5: =D5*1000 -> 2119.58444 | F5: =((2*PI())/60)*C5 -> 17.06932008 | G5: =((2*PI())/60)*E5 -> 221.9623635 | H5: =G5*$S$10 -> 0.002587415271 | I5: =H5*10197.16 -> 26.38428751 | J5: =F5*H5 -> 0.04416541946 | S5: -9.36e-10
B6: 200 | C6: 109 | D6: =(4*$S$4*(B6^3))+(3*$S$5*(B6^2))+(2*$S$6*(B6))+$S$7 -> 2.04918784 | E6: =D6*1000 -> 2049.18784 | F6: =((2*PI())/60)*C6 -> 11.41445331 | G6: =((2*PI())/60)*E6 -> 214.5904488 | H6: =G6*$S$10 -> 0.002501480862 | I6: =H6*10197.16 -> 25.50800058 | J6: =F6*H6 -> 0.0285530365 | S6: -0.000352
B7: 300 | C7: 218 | D7: 1.97888532 | E7: 1978.88532 | F7: 22.82890662 | G7: 207.2283861 | H7: 0.002415661297 | I7: 24.63288475 | J7: 0.05514690617 | S7: 2.19
B8: 400 | C8: 272 | D8: 1.908752 | E8: 1908.752 | F8: 28.48377339 | G8: 199.884042 | H8: 0.002330048278 | I8: 23.7598751 | J8: 0.06636856714
B9: 500 | C9: 163 | D9: 1.838863 | E9: 1838.863 | F9: 17.06932008 | G9: 192.5652831 | H9: 0.002244733505 | I9: 22.8899067 | J9: 0.03831607469 | S9: Tone Wheel
B10: 600 | C10: 327 | D10: 1.76929344 | E10: 1769.29344 | F10: 34.24335992 | G10: 185.2799758 | H10: 0.002159808678 | I10: 22.02391465 | J10: 0.07395910591 | S10: 1.1657e-05 | T10: kg*m2
B11: 700 | C11: 1200 | D11: 1.70011844 | E11: 1700.11844 | F11: 125.6637061 | G11: 178.0359867 | H11: 0.002075365497 | I11: 21.16283403 | J11: 0.26079812
B12: 800 | C12: 1418 | D12: 1.63141312 | E12: 1631.41312 | F12: 148.4926128 | G12: 170.8411824 | H12: 0.001991495664 | I12: 20.30759992 | J12: 0.2957223944 | S12: Tone Wheel = 2.135E-5
B13: 900 | C13: 1527 | D13: 1.5632526 | E13: 1563.2526 | F13: 159.9070661 | G13: 163.7034295 | H13: 0.001908290877 | I13: 19.4591474 | J13: 0.3051491954 | S13: Tone Wheel Thin = 1.1657E-5
B14: 1000 | C14: 1690 | D14: 1.495712 | E14: 1495.712 | F14: 176.9763862 | G14: 156.6305944 | H14: 0.001825842839 | I14: 18.61841156 | J14: 0.3231310673
B15: 1100 | C15: 1909 | D15: 1.42886644 | E15: 1428.86644 | F15: 199.9100125 | G15: 149.6305437 | H15: 0.001744243248 | I15: 17.78632748 | J15: 0.3486916895
B16: 1200 | C16: 1963 | D16: 1.36279104 | E16: 1362.79104 | F16: 205.5648793 | G16: 142.711144 | H16: 0.001663583805 | I16: 16.96383024 | J16: 0.3419744042
B17: 1300 | C17: 2181 | D17: 1.29756092 | E17: 1297.56092 | F17: 228.3937859 | G17: 135.8802618 | H17: 0.001583956212 | I17: 16.15185492 | J17: 0.3617657559
B18: 1400 | C18: 2290 | D18: 1.2332512 | E18: 1233.2512 | F18: 239.8082392 | G18: 129.1457637 | H18: 0.001505452167 | I18: 15.35133662 | J18: 0.3610198334
B19: 1500 | C19: 2345 | D19: 1.169937 | E19: 1169.937 | F19: 245.5678258 | G19: 122.5155161 | H19: 0.001428163372 | I19: 14.56321041 | J19: 0.350710974
B20: 1600 | C20: 2563 | D20: 1.10769344 | E20: 1107.69344 | F20: 268.3967324 | G20: 115.9973858 | H20: 0.001352181526 | I20: 13.78841137 | J20: 0.3629211032
B21: 1700 | C21: 2618 | D21: 1.04659564 | E21: 1046.59564 | F21: 274.1563189 | G21: 109.5992391 | H21: 0.001277598331 | I21: 13.02787459 | J21: 0.3502616553
B22: 1800 | C22: 2672 | D22: 0.98671872 | E22: 986.71872 | F22: 279.8111857 | G22: 103.3289427 | H22: 0.001204505485 | I22: 12.28253516 | J22: 0.337034108
B23: 1900 | C23: 2836 | D23: 0.9281378 | E23: 928.1378 | F23: 296.9852255 | G23: 97.19436313 | H23: 0.001132994691 | I23: 11.55332814 | J23: 0.3364826838
B24: 2000 | C24: 2945 | D24: 0.870928 | E24: 870.928 | F24: 308.3996788 | G24: 91.20336689 | H24: 0.001063157648 | I24: 10.84118864 | J24: 0.3278774771
B25: 2100 | C25: 2945 | D25: 0.81516444 | E25: 815.16444 | F25: 308.3996788 | G25: 85.36382054 | H25: 0.000995086056 | I25: 10.14705173 | J25: 0.3068842201
B26: 2200 | C26: 3054 | D26: 0.76092224 | E26: 760.92224 | F26: 319.8141321 | G26: 79.68359064 | H26: 0.0009288716161 | I26: 9.471852488 | J26: 0.2970662698
B27: 2300 | C27: 3163 | D27: 0.70827652 | E27: 708.27652 | F27: 331.2285854 | G27: 74.17054373 | H27: 0.0008646060283 | I27: 8.816526007 | J27: 0.2863822317
B28: 2400 | C28: 3163 | D28: 0.6573024 | E28: 657.3024 | F28: 331.2285854 | G28: 68.83254637 | H28: 0.000802380993 | I28: 8.182007367 | J28: 0.2657715213
B29: 2500 | C29: 3218 | D29: 0.608075 | E29: 608.075 | F29: 336.988172 | G29: 63.67746509 | H29: 0.0007422882106 | I29: 7.56923165 | J29: 0.2501423472
B30: 2600 | C30: 3327 | D30: 0.56066944 | E30: 560.66944 | F30: 348.4026253 | G30: 58.71316646 | H30: 0.0006844193814 | I30: 6.979133939 | J30: 0.2384535093
B31: 2700 | C31: 3327 | D31: 0.51516084 | E31: 515.16084 | F31: 348.4026253 | G31: 53.94751701 | H31: 0.0006288662058 | I31: 6.412649319 | J31: 0.2190986371
B32: 2800 | C32: 3436 | D32: 0.47162432 | E32: 471.62432 | F32: 359.8170786 | G32: 49.3883833 | H32: 0.0005757203841 | I32: 5.870712872 | J32: 0.2071540267
B33: 2900 | C33: 3490 | D33: 0.430135 | E33: 430.135 | F33: 365.4719454 | G33: 45.04363187 | H33: 0.0005250736167 | I33: 5.354259681 | J33: 0.1918996762
B34: 3000 | C34: 3436 | D34: 0.390768 | E34: 390.768 | F34: 359.8170786 | G34: 40.92112927 | H34: 0.0004770176039 | I34: 4.86422483 | J34: 0.1716390807
B35: 3100 | C35: 3545 | D35: 0.35359844 | E35: 353.59844 | F35: 371.2315319 | G35: 37.02874205 | H35: 0.000431644046 | I35: 4.401543401 | J35: 0.1602398804
B36: 3200 | C36: 3600 | D36: 0.31870144 | E36: 318.70144 | F36: 376.9911184 | G36: 33.37433675 | H36: 0.0003890446435 | I36: 3.967150477 | J36: 0.1466663753
B37: 3300 | C37: 3600 | D37: 0.28615212 | E37: 286.15212 | F37: 376.9911184 | G37: 29.96577993 | H37: 0.0003493110967 | I37: 3.561981143 | J37: 0.131687181
B38: 3400 | C38: 3654 | D38: 0.2560256 | E38: 256.0256 | F38: 382.6459852 | G38: 26.81093814 | H38: 0.0003125351059 | I38: 3.18697048 | J38: 0.1195903035
B39: 3500 | C39: 3600 | D39: 0.228397 | E39: 228.397 | F39: 376.9911184 | G39: 23.91767791 | H39: 0.0002788083714 | I39: 2.843053572 | J39: 0.1051082798
B40: 3600 | C40: 3763 | D40: 0.20334144 | E40: 203.34144 | F40: 394.0604385 | G40: 21.2938658 | H40: 0.0002482225937 | I40: 2.531165503 | J40: 0.09781470411
B41: 3700 | C41: 3654 | D41: 0.18093404 | E41: 180.93404 | F41: 382.6459852 | G41: 18.94736836 | H41: 0.000220869473 | I41: 2.252241355 | J41: 0.08451481709
B42: 3800 | C42: 3709 | D42: 0.16124992 | E42: 161.24992 | F42: 388.4055717 | G42: 16.88605214 | H42: 0.0001968407097 | I42: 2.007216212 | J42: 0.07645402841
B43: 3900 | C43: 3763 | D43: 0.1443642 | E43: 144.3642 | F43: 394.0604385 | G43: 15.11778367 | H43: 0.0001762280043 | I43: 1.797025156 | J43: 0.06944448464
B44: 4000 | C44: 3763 | D44: 0.130352 | E44: 130.352 | F44: 394.0604385 | G44: 13.65042952 | H44: 0.0001591230569 | I44: 1.622603271 | J44: 0.06270410158
B45: 4100 | C45: 3709 | D45: 0.11928844 | E45: 119.28844 | F45: 388.4055717 | G45: 12.49185623 | H45: 0.000145617568 | I45: 1.48488564 | J45: 0.05655867476
B46: 4200 | C46: 3818 | D46: 0.11124864 | E46: 111.24864 | F46: 399.820025 | G46: 11.64993034 | H46: 0.000135803238 | I46: 1.384807346 | J46: 0.054296854
B47: 4300 | C47: 3818 | D47: 0.10630772 | E47: 106.30772 | F47: 399.820025 | G47: 11.13251841 | H47: 0.0001297717671 | I47: 1.323303472 | J47: 0.05188535115
B48: 4400 | C48: 3763 | D48: 0.1045408 | E48: 104.5408 | F48: 394.0604385 | G48: 10.94748698 | H48: 0.0001276148557 | I48: 1.301309102 | J48: 0.05028796599
B49: 4500 | C49: 3818 | D49: 0.106023 | E49: 106.023 | F49: 399.820025 | G49: 11.1027026 | H49: 0.0001294242042 | I49: 1.319759318 | J49: 0.05174638855
B50: 4600 | C50: 3872 | D50: 0.11082944 | E50: 110.82944 | F50: 405.4748918 | G50: 11.60603182 | H50: 0.0001352915129 | I50: 1.379589204 | J50: 0.05485731155
B51: 4700 | C51: 3763 | D51: 0.11903524 | E51: 119.03524 | F51: 394.0604385 | G51: 12.46534118 | H51: 0.0001453084822 | I51: 1.481733842 | J51: 0.05726032421
B52: 4800 | C52: 3872 | D52: 0.13071552 | E52: 130.71552 | F52: 405.4748918 | G52: 13.68849724 | H52: 0.0001595668124 | I52: 1.627128317 | J52: 0.06470033599
B53: 4900 | C53: 3818 | D53: 0.1459454 | E53: 145.9454 | F53: 399.820025 | G53: 15.28336655 | H53: 0.0001781582039 | I53: 1.81670771 | J53: 0.07123121753
